fUSD/lending_fUSD_20240523
["ID","MTS","AMOUNT","RATE_DAILY","PERIOD"]
[327796574,1716489042979,-500.0,0.00021917,2]
[327796575,1716489042988,-4511.49,0.00021917,2]
[327796576,1716489042997,-500.0,0.00021917,2]
[327796577,1716489043006,-512.9590005,0.00021917,2]
[327796578,1716489043015,-500.0,0.00021917,2]
[327796579,1716489043024,-173.97,0.00021918,2]
[327796580,1716489043034,-250.0,0.00021918,2]
[327796581,1716489043043,-170.25,0.00021918,2]
[327796582,1716489043052,-2646.98,0.00021922,2]
[327796583,1716489043061,-2646.98,0.00021928,2]
[327796584,1716489043070,-2754.63037028,0.00021967,2]
[327796585,1716489043079,-500.0,0.00022191,2]
[327796586,1716489043088,-500.0,0.00022191,2]
[327796587,1716489043098,-500.0,0.00022191,2]
[327796588,1716489043107,-500.0,0.00022191,2]
[327796589,1716489043116,-651.65,0.00022191,2]
[327796590,1716489043125,-665.18,0.00022191,2]
[327796591,1716489043134,-500.0,0.00022191,2]
[327796592,1716489043143,-500.0,0.00022191,2]
[327796593,1716489043152,-1100.54,0.00022191,2]
[327796594,1716489043162,-545.43,0.00022191,2]
[327796595,1716489043173,-500.0,0.00022191,2]
[327796596,1716489043182,-500.0,0.00022191,2]
[327796597,1716489043191,-500.0,0.00022191,2]
[327796598,1716489043200,-500.0,0.00022191,2]
[327796599,1716489043209,-632.96,0.00022191,2]
[327796600,1716489043218,-1664.35,0.00022191,2]
[327796601,1716489043227,-500.0,0.00022191,2]
[327796602,1716489043237,-500.0,0.00022191,2]
[327796603,1716489043246,-500.0,0.00022191,2]
[327796604,1716489043255,-500.0,0.00022191,2]
[327796605,1716489043264,-500.0,0.00022191,2]
[327796606,1716489043274,-500.0,0.00022191,2]
[327796608,1716489043283,-4511.49,0.00022191,2]
[327796609,1716489043292,-500.0,0.00022191,2]
[327796610,1716489043301,-500.0,0.00022191,2]
[327796611,1716489043310,-527.88,0.00022213,2]
[327796612,1716489043319,-46953.32,0.00022293,2]
[327796613,1716489043328,-247.17,0.00022389,2]
[327796614,1716489043338,-500.0,0.00022465,2]
[327796615,1716489043349,-500.0,0.00022465,2]
[327796616,1716489043359,-196.01450509,0.00022465,2]
[327796617,1716489043368,-500.0,0.00022465,2]
[327796618,1716489043378,-651.65,0.00022465,2]
[327796619,1716489043392,-665.18,0.00022465,2]
[327796620,1716489043401,-500.0,0.00022465,2]
[327796621,1716489043410,-500.0,0.00022465,2]
[327796622,1716489043419,-1100.54,0.00022465,2]
[327796623,1716489043432,-545.43,0.00022465,2]
[327796624,1716489043441,-500.0,0.00022465,2]
[327796625,1716489043451,-500.0,0.00022465,2]
[327796627,1716489043460,-500.0,0.00022465,2]
[327796629,1716489043473,-500.0,0.00022465,2]
[327796631,1716489043483,-632.96,0.00022465,2]
[327796632,1716489043493,-1664.35,0.00022465,2]
[327796634,1716489043503,-500.0,0.00022465,2]
[327796636,1716489043512,-500.0,0.00022465,2]
[327796638,1716489043522,-500.0,0.00022465,2]
[327796640,1716489043531,-500.0,0.00022465,2]
[327796642,1716489043540,-500.0,0.00022465,2]
[327796644,1716489043549,-500.0,0.00022465,2]
[327796649,1716489043745,-4511.49,0.00022465,2]
[327796650,1716489043755,-500.0,0.00022465,2]
[327796651,1716489043765,-500.0,0.00022465,2]
[327796652,1716489043774,-3308.35237155,0.00022506,2]
[327796653,1716489043784,-434.88730552,0.00022564,2]
[327796654,1716489043793,-152.16,0.00022586,2]
[327796655,1716489043803,-8987.16,0.00022627,2]
[327796656,1716489043812,-500.0,0.00022739,2]
[327796657,1716489043821,-500.0,0.00022739,2]
[327796658,1716489043830,-500.0,0.00022739,2]
[327796659,1716489043839,-651.65,0.00022739,2]
[327796660,1716489043849,-665.18,0.00022739,2]
[327796661,1716489043858,-500.0,0.00022739,2]
[327796662,1716489043867,-500.0,0.00022739,2]
[327796663,1716489043877,-1100.54,0.00022739,2]
[327796664,1716489043886,-545.43,0.00022739,2]
[327796665,1716489043896,-500.0,0.00022739,2]
[327796666,1716489043905,-500.0,0.00022739,2]
[327796667,1716489043915,-583.24995457,0.00022739,2]
[327796668,1716489043925,-500.0,0.00022739,2]
[327796669,1716489043934,-632.96,0.00022739,2]
[327796670,1716489043943,-1664.35,0.00022739,2]
[327796671,1716489043953,-500.0,0.00022739,2]
[327796672,1716489043962,-500.0,0.00022739,2]
[327796673,1716489043972,-500.0,0.00022739,2]
[327796674,1716489043982,-500.0,0.00022739,2]
[327796675,1716489043991,-500.0,0.00022739,2]
[327796676,1716489044001,-500.0,0.00022739,2]
[327796677,1716489044011,-4511.49,0.00022739,2]
[327796678,1716489044020,-500.0,0.00022739,2]
[327796679,1716489044030,-500.0,0.00022739,2]
[327796680,1716489044040,-509.13,0.00022763,2]
[327796681,1716489044050,-2814.53475114,0.00022779,2]
[327796682,1716489044060,-255.23544755,0.00022844,2]
[327796683,1716489044071,-152.16,0.00022888,2]
[327796684,1716489044080,-152.16,0.00022888,2]
[327796685,1716489044090,-31322.51207996,0.00022889,2]
[327796686,1716489044100,-118296.34737079,0.00022898,2]
[327796687,1716489044110,-29104.49249674,0.00022898,2]
[327796688,1716489044125,-1684.1825,0.00022898,2]
[327796689,1716489044138,-6723.4,0.00022898,2]
[327796703,1716489044490,-2365.76863281,0.00022898,2]
[327796708,1716489044768,-794.32983407,0.00021501,2]
[327796710,1716489044779,-2233.02170541,0.00022898,2]
[327796713,1716489044792,-7813.42424938,0.00022898,2]
[327796715,1716489044804,-37090.00000011,0.00022898,2]
[327796717,1716489044816,-13403.79999999,0.00022898,2]
[327796719,1716489044830,-500.0,0.00022898,2]
[327796722,1716489044842,-255.532,0.00022898,2]
[327796726,1716489044854,-17122.72578633,0.00022898,2]
[327796728,1716489044864,-2754.63037028,0.00022945,2]
[327796730,1716489044874,-1396.18,0.0002295,2]
[327796732,1716489044885,-152.16,0.00022978,2]
[327796734,1716489044895,-31322.5120799,0.00022988,2]
[327796736,1716489044905,-800.0,0.00023,2]
[327796738,1716489044914,-500.0,0.00023013,2]
[327796740,1716489044925,-500.0,0.00023013,2]
[327796742,1716489044935,-500.0,0.00023013,2]
[327796744,1716489044945,-651.65,0.00023013,2]
[327796746,1716489044955,-165.13134442,0.00023013,2]
[327796748,1716489044968,-500.04865558,0.00023013,2]
[327796750,1716489044978,-500.0,0.00023013,2]
[327796752,1716489044988,-500.0,0.00023013,2]
[327796754,1716489044998,-1100.54,0.00023013,2]
[327796756,1716489045008,-545.43,0.00023013,2]
[327796758,1716489045018,-500.0,0.00023013,2]
[327796760,1716489045028,-500.0,0.00023013,2]
[327796762,1716489045038,-500.0,0.00023013,2]
[327796764,1716489045048,-632.96,0.00023013,2]
[327796766,1716489045057,-1664.35,0.00023013,2]
[327796768,1716489045067,-500.0,0.00023013,2]
[327796770,1716489045077,-500.0,0.00023013,2]
[327796772,1716489045087,-306.53787801,0.00023013,2]
[327796774,1716489045098,-500.0,0.00023013,2]
[327796776,1716489045108,-308.56412197,0.00023013,2]
[327796778,1716489045117,-500.0,0.00023013,2]
[327796781,1716489045127,-4511.49,0.00023013,2]
[327796782,1716489045136,-500.0,0.00023013,2]
[327796784,1716489045146,-500.0,0.00023013,2]
[327796786,1716489045155,-565.7,0.00023051,3]
[327796788,1716489045165,-500.0,0.00023287,2]
[327796791,1716489045175,-500.0,0.00023287,2]
[327796793,1716489045185,-500.0,0.00023287,2]
[327796794,1716489045195,-651.65,0.00023287,2]
[327796797,1716489045205,-665.18,0.00023287,2]
[327796799,1716489045215,-500.0,0.00023287,2]
[327796801,1716489045224,-500.0,0.00023287,2]
[327796803,1716489045234,-1100.54,0.00023287,2]
[327796805,1716489045243,-545.43,0.00023287,2]
[327796807,1716489045252,-500.0,0.00023287,2]
[327796809,1716489045262,-500.0,0.00023287,2]
[327796811,1716489045271,-500.0,0.00023287,2]
[327796813,1716489045280,-632.96,0.00023287,2]
[327796815,1716489045290,-1664.35,0.00023287,2]
[327796817,1716489045300,-500.0,0.00023287,2]
[327796818,1716489045309,-500.0,0.00023287,2]
[327796820,1716489045319,-500.0,0.00023287,2]
[327796822,1716489045328,-500.0,0.00023287,2]
[327796824,1716489045338,-4511.49,0.00023287,2]
[327796826,1716489045347,-500.0,0.00023287,2]
[327796828,1716489045356,-500.0,0.00023287,2]
[327796829,1716489045366,-1126.27934444,0.00023307,2]
[327796830,1716489045379,-10149.76065556,0.00023307,2]
[327796831,1716489045393,-152.98363769,0.00023354,2]
[327796832,1716489045402,-434.88730552,0.00023536,2]
[327796833,1716489045411,-500.0,0.00023561,2]
[327796834,1716489045420,-577.98773566,0.00023561,2]
[327796835,1716489045432,-533.20067062,0.00023561,2]
[327796836,1716489045441,-651.65,0.00023561,2]
[327796839,1716489045450,-665.18,0.00023561,2]
[327796842,1716489045459,-500.0,0.00023561,2]
[327796845,1716489045470,-500.0,0.00023561,2]
[327796847,1716489045480,-1100.54,0.00023561,2]
[327796848,1716489045489,-545.43,0.00023561,2]
[327796849,1716489045498,-500.0,0.00023561,2]
[327796851,1716489045507,-500.0,0.00023561,2]
[327796853,1716489045517,-500.0,0.00023561,2]
[327796855,1716489045527,-632.96,0.00023561,2]
[327796857,1716489045536,-1664.35,0.00023561,2]
[327796860,1716489045545,-500.0,0.00023561,2]
[327796862,1716489045555,-500.0,0.00023561,2]
[327796865,1716489045564,-484.623125,0.00023561,2]
[327796868,1716489045573,-500.0,0.00023561,2]
[327796871,1716489045583,-4511.49,0.00023561,2]
[327796874,1716489045592,-500.0,0.00023561,2]
[327796876,1716489045601,-500.0,0.00023561,2]
[327796878,1716489045610,-2295.1652,0.00023757,2]
[327796880,1716489045620,-621.1765,0.00023757,2]
[327796882,1716489045629,-152.16,0.00023759,2]
[327796884,1716489045639,-1020.48,0.00023768,2]
[327796886,1716489045648,-500.0,0.00023768,2]
[327796888,1716489045657,-500.0,0.00023768,2]
[327796890,1716489045666,-500.0,0.00023768,2]
[327796892,1716489045676,-500.0,0.00023768,2]
[327796894,1716489045686,-526.2,0.00023768,2]
[327796896,1716489045695,-500.0,0.00023768,2]
[327796897,1716489045705,-920.26,0.00023768,2]
[327796899,1716489045714,-500.0,0.00023768,2]
[327796901,1716489045724,-500.0,0.00023768,2]
[327796903,1716489045734,-1041.46,0.00023768,2]
[327796905,1716489045744,-500.0,0.00023768,2]
[327796907,1716489045754,-515.28,0.00023768,2]
[327796908,1716489045763,-749.43,0.00023768,2]
[327796909,1716489045773,-13159.04558521,0.00023769,2]
[327796910,1716489045783,-500.0,0.00023835,2]
[327796911,1716489045793,-651.65,0.00023835,2]
[327796912,1716489045802,-665.18,0.00023835,2]
[327796913,1716489045812,-500.0,0.00023835,2]
[327796914,1716489045821,-500.0,0.00023835,2]
[327796915,1716489045831,-1100.54,0.00023835,2]
[327796916,1716489045841,-545.43,0.00023835,2]
[327796917,1716489045850,-500.0,0.00023835,2]
[327796918,1716489045860,-500.0,0.00023835,2]
[327796919,1716489045869,-500.0,0.00023835,2]
[327796920,1716489045879,-632.96,0.00023835,2]
[327796921,1716489045888,-1664.35,0.00023835,2]
[327796922,1716489045897,-500.0,0.00023835,2]
[327796923,1716489045907,-500.0,0.00023835,2]
[327796924,1716489045915,-500.0,0.00023835,2]
[327796925,1716489045926,-4511.49,0.00023835,2]
[327796926,1716489045935,-363.01958475,0.00023835,2]
[327796927,1716489045947,-136.98041525,0.00023835,2]
[327796928,1716489045957,-114.56008393,0.00023835,2]
[327796929,1716489045968,-303.9885,0.00023835,2]
[327796930,1716489045985,-81.45141607,0.00023835,2]
[327796931,1716489045995,-224.51674667,0.00023867,2]
[327796932,1716489046008,-68.48325333,0.00023867,2]
[327796933,1716489046018,-158.34887445,0.00023867,2]
[327796934,1716489046028,-298.8242902,0.00023868,2]
[327796935,1716489046037,-246.26429805,0.00023868,2]
[327796936,1716489046047,-864.54590851,0.00023868,7]
[327796937,1716489046056,-2754.63037028,0.00023922,2]
[327796938,1716489046066,-2814.53475114,0.00023966,2]
[327796939,1716489046075,-433.1400003,0.00024,2]
[327796940,1716489046085,-472.45726553,0.00024,2]
[327796941,1716489046095,-2000.0,0.00024,2]
[327796942,1716489046105,-2000.0,0.00024,2]
[327796944,1716489046115,-1001.81220353,0.00024,2]
[327796945,1716489046124,-47476.18038905,0.00024041,4]
[327796946,1716489046134,-1020.48,0.00024042,2]
[327796947,1716489046143,-500.0,0.00024042,2]
[327796948,1716489046153,-500.0,0.00024042,2]
[327796949,1716489046164,-500.0,0.00024042,2]
[327796950,1716489046176,-500.0,0.00024042,2]
[327796951,1716489046185,-526.2,0.00024042,2]
[327796952,1716489046195,-500.0,0.00024042,2]
[327796953,1716489046205,-920.26,0.00024042,2]
[327796954,1716489046215,-500.0,0.00024042,2]
[327796955,1716489046224,-500.0,0.00024042,2]
[327796956,1716489046234,-1041.46,0.00024042,2]
[327796957,1716489046243,-515.28,0.00024042,2]
[327796958,1716489046253,-749.43,0.00024042,2]
[327796959,1716489046263,-1000.0,0.00024089,2]
[327796960,1716489046272,-500.0,0.00024109,2]
[327796961,1716489046282,-651.65,0.00024109,2]
[327796962,1716489046291,-665.18,0.00024109,2]
[327796963,1716489046301,-500.0,0.00024109,2]
[327796964,1716489046311,-500.0,0.00024109,2]
[327796965,1716489046321,-1100.54,0.00024109,2]
[327796966,1716489046331,-545.43,0.00024109,2]
[327796967,1716489046341,-500.0,0.00024109,2]
[327796968,1716489046351,-500.0,0.00024109,2]
[327796969,1716489046361,-500.0,0.00024109,2]
[327796970,1716489046371,-632.96,0.00024109,2]
[327796971,1716489046382,-1664.35,0.00024109,2]
[327796972,1716489046395,-500.0,0.00024109,2]
[327796973,1716489046405,-500.0,0.00024109,2]
[327796974,1716489046415,-500.0,0.00024109,2]
[327796975,1716489046426,-4511.49,0.00024109,2]
[327796976,1716489046437,-500.0,0.00024109,2]
[327796978,1716489046447,-500.0,0.00024109,2]
[327796980,1716489046457,-152.16,0.00024127,2]
[327796982,1716489046469,-118296.34737077,0.00024137,2]
[327796984,1716489046480,-180.0,0.0002423,2]
[327796986,1716489046489,-152.16,0.00024306,2]
[327796988,1716489046500,-358.93093096,0.00024316,2]
[327797001,1716489046723,-661.54906904,0.00024316,2]
[327797002,1716489046733,-500.0,0.00024316,2]
[327797003,1716489046742,-531.97,0.00024316,2]
[327797004,1716489046752,-500.0,0.00024316,2]
[327797005,1716489046762,-500.0,0.00024316,2]
[327797006,1716489046771,-526.2,0.00024316,2]
[327797008,1716489046780,-500.0,0.00024316,2]
[327797010,1716489046790,-920.26,0.00024316,2]
[327797012,1716489046799,-500.0,0.00024316,2]
[327797013,1716489046808,-500.0,0.00024316,2]
[327797014,1716489046817,-1041.46,0.00024316,2]
[327797015,1716489046827,-515.28,0.00024316,2]
[327797016,1716489046837,-749.43,0.00024316,2]
[327797017,1716489046847,-2016.94227978,0.00024373,2]
[327797018,1716489046856,-500.0,0.00024383,2]
[327797019,1716489046866,-651.65,0.00024383,2]
[327797020,1716489046875,-665.18,0.00024383,2]
[327797021,1716489046885,-500.0,0.00024383,2]
[327797022,1716489046895,-500.0,0.00024383,2]
[327797023,1716489046904,-1100.54,0.00024383,2]
[327797024,1716489046913,-545.43,0.00024383,2]
[327797025,1716489046923,-500.0,0.00024383,2]
[327797026,1716489046934,-500.0,0.00024383,2]
[327797027,1716489046943,-500.0,0.00024383,2]
[327797028,1716489046952,-632.96,0.00024383,2]
[327797029,1716489046962,-1664.35,0.00024383,2]
[327797030,1716489046972,-500.0,0.00024383,2]
[327797031,1716489046982,-500.0,0.00024383,2]
[327797032,1716489046992,-500.0,0.00024383,2]
[327797033,1716489047001,-4511.49,0.00024383,2]
[327797034,1716489047010,-500.0,0.00024383,2]
[327797035,1716489047020,-500.0,0.00024383,2]
[327797036,1716489047029,-2662.72165118,0.00024384,2]
[327797037,1716489047041,-470.0,0.00024384,2]
[327797038,1716489047052,-3358.47795824,0.00024384,2]
[327797039,1716489047063,-1806.84407114,0.00024384,2]
[327797040,1716489047074,-6040.01166,0.00024384,2]
[327797041,1716489047086,-16984.45673934,0.00024384,2]
[327797042,1716489047095,-849.0,0.000244,2]
[327797043,1716489047104,-434.88730552,0.00024508,2]
[327797044,1716489047114,-1020.48,0.0002459,2]
[327797045,1716489047123,-500.0,0.0002459,2]
[327797046,1716489047134,-601.42,0.0002459,2]
[327797047,1716489047143,-500.0,0.0002459,2]
[327797048,1716489047153,-526.2,0.0002459,2]
[327797049,1716489047162,-500.0,0.0002459,2]
[327797050,1716489047171,-920.26,0.0002459,2]
[327797051,1716489047183,-500.0,0.0002459,2]
[327797052,1716489047192,-500.0,0.0002459,2]
[327797053,1716489047202,-1041.46,0.0002459,2]
[327797054,1716489047211,-515.28,0.0002459,2]
[327797055,1716489047222,-152.98363769,0.00024615,2]
[327797056,1716489047232,-152.16,0.00024648,2]
[327797057,1716489047242,-500.0,0.00024657,2]
[327797058,1716489047251,-651.65,0.00024657,2]
[327797059,1716489047261,-665.18,0.00024657,2]
[327797060,1716489047271,-500.0,0.00024657,2]
[327797061,1716489047281,-500.0,0.00024657,2]
[327797062,1716489047290,-1100.54,0.00024657,2]
[327797063,1716489047300,-545.43,0.00024657,2]
[327797064,1716489047309,-500.0,0.00024657,2]
[327797065,1716489047318,-500.0,0.00024657,2]
[327797066,1716489047328,-500.0,0.00024657,2]
[327797067,1716489047338,-632.96,0.00024657,2]
[327797068,1716489047348,-1664.35,0.00024657,2]
[327797069,1716489047358,-500.0,0.00024657,2]
[327797070,1716489047367,-500.0,0.00024657,2]
[327797071,1716489047376,-500.0,0.00024657,2]
[327797072,1716489047387,-4511.49,0.00024657,2]
[327797073,1716489047401,-343.34691166,0.00024657,2]
[327797074,1716489047410,-500.0,0.00024657,2]
[327797075,1716489047419,-800.0,0.00024658,2]
[327797076,1716489047431,-43894.74046841,0.00024658,2]
[327797077,1716489047443,-63792.25953159,0.00024658,2]
[327797078,1716489047452,-204.9066759,0.00024672,2]
[327797079,1716489047462,-369.10914344,0.00024672,2]
[327797080,1716489047473,-279.01846308,0.00024672,2]
[327797081,1716489047493,-155.96728218,0.00024672,2]
[327797082,1716489047503,-308.76,0.00024673,2]
[327797083,1716489047513,-500.0,0.00024673,2]
[327797084,1716489047523,-500.0,0.00024673,2]
[327797085,1716489047533,-500.0,0.00024673,2]
[327797086,1716489047543,-500.0,0.00024673,2]
[327797087,1716489047553,-500.0,0.00024673,2]
[327797088,1716489047562,-500.0,0.00024673,2]
[327797089,1716489047572,-500.0,0.00024673,2]
[327797090,1716489047581,-500.0,0.00024673,2]
[327797091,1716489047591,-284.66,0.00024673,2]
[327797092,1716489047600,-500.0,0.00024673,2]
[327797093,1716489047610,-500.0,0.00024673,2]
[327797094,1716489047620,-308.14624774,0.00024673,2]
[327797095,1716489047630,-500.0,0.00024673,2]
[327797096,1716489047640,-500.0,0.00024673,2]
[327797097,1716489047650,-150.0,0.00024673,2]
[327797098,1716489047660,-591.58,0.00024673,2]
[327797099,1716489047670,-500.0,0.00024673,2]
[327797100,1716489047680,-500.0,0.00024673,2]
[327797101,1716489047690,-500.0,0.00024673,2]
[327797102,1716489047699,-500.0,0.00024673,2]
[327797103,1716489047709,-500.0,0.00024673,2]
[327797104,1716489047719,-500.0,0.00024673,2]
[327797105,1716489047729,-500.0,0.00024673,2]
[327797106,1716489047738,-1000.0,0.00024673,2]
[327797107,1716489047747,-500.0,0.00024673,2]
[327797108,1716489047757,-500.0,0.00024673,2]
[327797109,1716489047766,-500.0,0.00024673,2]
[327797110,1716489047978,-500.0,0.00024673,2]
[327797111,1716489048023,-516.15094065,0.00024673,2]
[327797112,1716489048033,-500.0,0.00024673,2]
[327797113,1716489048043,-500.0,0.00024673,2]
[327797114,1716489048053,-500.0,0.00024673,2]
[327797115,1716489048062,-500.0,0.00024674,2]
[327797116,1716489048071,-500.0,0.00024674,2]
[327797117,1716489048081,-500.0,0.00024674,2]
[327797118,1716489048090,-500.0,0.00024674,2]
[327797119,1716489048099,-384.94687502,0.00024674,2]
[327797120,1716489048109,-500.0,0.00024674,2]
[327797121,1716489048118,-500.0,0.00024674,2]
[327797122,1716489048127,-201.89027058,0.00024674,2]
[327797123,1716489048137,-394.05428682,0.00024674,2]
[327797124,1716489048146,-575.34,0.00024674,2]
[327797125,1716489048155,-500.0,0.00024674,2]
[327797126,1716489048164,-500.0,0.00024674,2]
[327797127,1716489048174,-529.44,0.00024674,2]
[327797128,1716489048183,-500.0,0.00024674,2]
[327797129,1716489048192,-582.68,0.00024674,2]
[327797130,1716489048202,-321.82956776,0.00024674,2]
[327797131,1716489048211,-500.0,0.00024674,2]
[327797132,1716489048220,-500.0,0.00024674,2]
[327797133,1716489048230,-500.0,0.00024674,2]
[327797134,1716489048239,-500.0,0.00024674,2]
[327797135,1716489048248,-500.0,0.00024674,2]
[327797136,1716489048257,-500.0,0.00024674,2]
[327797137,1716489048266,-500.0,0.00024674,2]
[327797138,1716489048275,-500.0,0.00024674,2]
[327797139,1716489048284,-500.0,0.00024674,2]
[327797140,1716489048293,-500.0,0.00024674,2]
[327797141,1716489048302,-500.0,0.00024674,2]
[327797142,1716489048312,-500.0,0.00024674,2]
[327797143,1716489048322,-500.0,0.00024674,2]
[327797144,1716489048331,-507.11,0.00024674,2]
[327797145,1716489048340,-500.0,0.00024674,2]
[327797146,1716489048350,-500.0,0.00024674,2]
[327797147,1716489048358,-500.0,0.00024674,2]
[327797148,1716489048368,-500.0,0.00024674,2]
[327797149,1716489048377,-649.72,0.00024674,2]
[327797150,1716489048391,-500.0,0.00024674,2]
[327797151,1716489048400,-744.81,0.00024674,2]
[327797152,1716489048410,-508.45760407,0.00024674,2]
[327797153,1716489048419,-500.0,0.00024674,2]
[327797154,1716489048431,-500.0,0.00024674,2]
[327797155,1716489048440,-733.02,0.00024674,2]
[327797156,1716489048453,-546.51,0.00024674,2]
[327797157,1716489048463,-500.0,0.00024674,2]
[327797158,1716489048473,-500.0,0.00024674,2]
[327797159,1716489048484,-500.0,0.00024674,2]
[327797160,1716489048493,-507.77056322,0.00024674,2]
[327797161,1716489048503,-500.0,0.00024674,2]
[327797162,1716489048512,-646.93,0.00024674,2]
[327797163,1716489048522,-518.28778113,0.00024674,2]
[327797164,1716489048531,-500.0,0.00024674,2]
[327797165,1716489048540,-500.0,0.00024674,2]
[327797166,1716489048549,-500.0,0.00024674,2]
[327797167,1716489048559,-500.0,0.00024674,2]
[327797168,1716489048569,-500.0,0.00024674,2]
[327797169,1716489048578,-500.0,0.00024674,2]
[327797170,1716489048587,-601.16501466,0.00024674,2]
[327797171,1716489048597,-500.0,0.00024674,2]
[327797172,1716489048607,-500.0,0.00024674,2]
[327797173,1716489048616,-584.99759674,0.00024674,2]
[327797174,1716489048626,-500.0,0.00024674,2]
[327797175,1716489048635,-419.40894564,0.00024674,2]
[327797176,1716489048645,-500.0,0.00024674,2]
[327797177,1716489048655,-396.9474423,0.00024674,2]
[327797178,1716489048664,-500.0,0.00024674,2]
[327797179,1716489048674,-570.34053388,0.00024674,2]
[327797180,1716489048690,-500.0,0.00024674,2]
[327797181,1716489048699,-500.0,0.00024674,2]
[327797182,1716489048709,-500.0,0.00024674,2]
[327797183,1716489048718,-500.0,0.00024674,2]
[327797184,1716489048728,-500.0,0.00024674,2]
[327797185,1716489048737,-763.67,0.00024674,2]
[327797186,1716489048747,-500.0,0.00024674,2]
[327797187,1716489048757,-828.83,0.00024674,2]
[327797188,1716489048767,-500.0,0.00024674,2]
[327797189,1716489048777,-500.0,0.00024674,2]
[327797190,1716489048787,-222.53,0.00024674,2]
[327797191,1716489048797,-499.83,0.00024674,2]
[327797192,1716489048806,-566.1596842,0.00024674,2]
[327797193,1716489048816,-420.91955648,0.00024674,2]
[327797194,1716489048825,-527.88,0.00024681,2]
[327797195,1716489048834,-572.69,0.00024699,2]
[327797196,1716489048844,-500.0,0.00024699,2]
[327797197,1716489048853,-500.0,0.00024699,2]
[327797198,1716489048863,-297.22736482,0.00024699,2]
[327797199,1716489048872,-500.0,0.00024699,2]
[327797200,1716489048881,-605.34072564,0.00024699,2]
[327797201,1716489048891,-177.34327583,0.00024699,2]
[327797202,1716489048900,-439.141812,0.00024699,2]
[327797203,1716489048910,-542.84521978,0.00024699,2]
[327797204,1716489048919,-500.0,0.00024699,2]
[327797205,1716489048930,-500.0,0.00024699,2]
[327797206,1716489048939,-500.0,0.00024699,2]
[327797207,1716489048949,-500.0,0.00024699,2]
[327797208,1716489048959,-500.0,0.00024699,2]
[327797209,1716489048968,-500.0,0.00024699,2]
[327797210,1716489048978,-500.0,0.00024699,2]
[327797211,1716489048987,-200.44426332,0.00024699,2]
[327797212,1716489048996,-500.0,0.00024699,2]
[327797213,1716489049007,-500.0,0.00024699,2]
[327797214,1716489049017,-500.0,0.00024699,2]
[327797215,1716489049026,-500.0,0.00024699,2]
[327797216,1716489049035,-583.28571568,0.00024699,2]
[327797217,1716489049045,-500.0,0.00024699,2]
[327797218,1716489049054,-500.0,0.00024699,2]
[327797219,1716489049063,-500.0,0.00024699,2]
[327797220,1716489049073,-500.0,0.00024699,2]
[327797221,1716489049082,-483.85,0.00024699,2]
[327797222,1716489049091,-564.85,0.00024699,2]
[327797223,1716489049101,-500.0,0.00024699,2]
[327797224,1716489049110,-163.85,0.00024699,2]
[327797225,1716489049120,-500.0,0.00024699,2]
[327797226,1716489049130,-451.92,0.00024699,2]